fUST/lending_fUST_20240208
["ID","MTS","AMOUNT","RATE_DAILY","PERIOD"]
[313497005,1707402645228,-1831.79022935,0.00025992,2]
[313497006,1707402645237,-622.36860432,0.00025992,2]
[313497007,1707402645246,-155.87358221,0.00025992,2]
[313497008,1707402645255,-1652.70088172,0.00025992,2]
[313497009,1707402645264,-1016.93464095,0.00025992,2]
[313497010,1707402645273,-155.10236756,0.00025992,2]
[313497011,1707402645282,-10319.71270088,0.00025992,2]
[313497012,1707402645291,-2091.03843255,0.00025992,2]
[313497013,1707402645300,-2732.88603195,0.00025992,2]
[313497014,1707402645308,-155.10236756,0.00025992,2]
[313497015,1707402645317,-766.13227531,0.00025992,2]
[313497016,1707402645326,-300.0,0.00025992,2]
[313497017,1707402645335,-94491.89154534,0.00025992,7]
[313497018,1707402645344,-151.0,0.00025992,2]
[313497019,1707402645353,-151.0,0.00025992,2]
[313497020,1707402645362,-151.0,0.00025992,2]
[313497021,1707402645370,-219.90588,0.00025992,2]
[313497022,1707402645379,-250.0,0.00026,2]
[313497023,1707402645388,-280.0,0.00026136,15]
[313497024,1707402645397,-159.70804611,0.00026144,2]
[313497025,1707402645406,-772.34776881,0.00026185,2]
[313497026,1707402645415,-280.5209617,0.00026194,2]
[313497027,1707402645423,-5085.45530135,0.00026278,2]
[313497028,1707402645435,-5000.0,0.00026278,2]
[313497029,1707402645444,-500.0,0.00026284,2]
[313497030,1707402645454,-242.15308613,0.00026284,2]
[313497031,1707402645464,-500.0,0.00026284,2]
[313497032,1707402645474,-411.80090703,0.00026284,2]
[313497033,1707402645483,-5000.0,0.00026285,2]
[313497035,1707402645492,-30447.79141564,0.00026285,2]
[313497037,1707402645503,-5000.0,0.00026285,2]
[313497038,1707402645511,-5000.0,0.00026285,2]
[313497039,1707402645520,-5000.0,0.00026285,2]
[313497040,1707402645531,-5000.0,0.00026285,2]
[313497041,1707402645540,-11243.92181263,0.00026285,2]
[313497043,1707402645550,-151.0,0.00026285,2]
[313497045,1707402645560,-151.0,0.00026285,2]
[313497047,1707402645569,-346.93582447,0.00026285,2]
[313497049,1707402645579,-5000.0,0.00026285,2]
[313497051,1707402645588,-5000.0,0.00026285,2]
[313497053,1707402645598,-5000.0,0.00026285,2]
[313497056,1707402645608,-151.0,0.00026285,2]
[313497059,1707402645617,-5000.0,0.00026285,2]
[313497061,1707402645626,-151.0,0.00026285,2]
[313497063,1707402645636,-297.86636447,0.00026293,2]
[313497064,1707402645645,-522.67608181,0.00026293,2]
[313497066,1707402645655,-1097.6572376,0.00026294,2]
[313497067,1707402645665,-155.23060247,0.00026294,2]
[313497068,1707402645674,-1858.63739895,0.00026294,2]
[313497069,1707402645684,-426.52191671,0.00026294,2]
[313497070,1707402645694,-720.16060598,0.00026294,2]
[313497071,1707402645703,-1433.12724431,0.00026294,2]
[313497072,1707402645713,-181.4071721,0.00026294,2]
[313497073,1707402645722,-1229.84476717,0.00026294,2]
[313497074,1707402645731,-556.75044234,0.00026294,2]
[313497075,1707402645741,-330.18381509,0.00026294,2]
[313497076,1707402645752,-155.8996643,0.00026294,2]
[313497077,1707402645761,-1791.801044,0.00026294,2]
[313497078,1707402645771,-7977.34507232,0.00026294,2]
[313497079,1707402645780,-19906.99800967,0.00026294,2]
[313497080,1707402645789,-233.735791,0.00026294,2]
[313497081,1707402645799,-362.93133903,0.00026295,2]
[313497082,1707402645808,-195.3276052,0.00026295,2]
[313497083,1707402645818,-3215.40595025,0.00026295,2]
[313497084,1707402645828,-542.11512085,0.0002639,2]
[313497085,1707402645837,-162.63453625,0.0002639,2]
[313497086,1707402645847,-248.61642599,0.0002639,2]
[313497087,1707402645857,-159.70804611,0.00026396,2]
[313497088,1707402645867,-160.37375333,0.00026397,2]
[313497089,1707402645877,-353.42508545,0.00026397,2]
[313497090,1707402645886,-321.19319145,0.00026397,2]
[313497091,1707402645896,-372.61035757,0.00026397,2]
[313497092,1707402645906,-466.23353488,0.00026397,2]
[313497093,1707402645915,-500.36468431,0.000264,2]
[313497094,1707402645925,-5000.0,0.00026405,2]
[313497095,1707402645934,-18491.03218402,0.00026411,2]
[313497096,1707402645943,-5000.0,0.00026411,2]
[313497097,1707402645953,-5000.0,0.00026411,2]
[313497098,1707402645963,-5000.0,0.00026419,2]
[313497099,1707402645972,-5000.0,0.00026427,2]
[313497100,1707402645982,-5000.0,0.00026434,2]
[313497101,1707402645991,-159.70804611,0.00026648,2]
[313497102,1707402646003,-151.0,0.00026696,2]
[313497103,1707402646013,-620.21891037,0.00026729,2]
[313497104,1707402646023,-18545.60282647,0.000268,2]
[313497105,1707402646032,-367.9354686,0.00026849,2]
[313497106,1707402646041,-159.70804611,0.000269,2]
[313497107,1707402646051,-1259.2508208,0.00026999,2]
[313497108,1707402646060,-1194.47689406,0.00026999,2]
[313497109,1707402646069,-1382.75585323,0.00027,2]
[313497110,1707402646079,-18417.21142264,0.00027,2]
[313497111,1707402646089,-103119.88915964,0.00027,2]
[313497112,1707402646098,-155.15103151,0.00027,2]
[313497113,1707402646108,-155.0,0.00027397,2]
[313497115,1707402646117,-155.0,0.00027397,2]
[313497117,1707402646126,-505.65445012,0.00027397,2]
[313497119,1707402646137,-615.4781515,0.00027397,2]
[313497121,1707402646147,-151.0,0.000274,2]
[313497123,1707402646156,-2501.59684889,0.000275,3]
[313497138,1707402646248,-500.0,0.000275,2]
[313497140,1707402646258,-203.464491,0.00027671,2]
[313497141,1707402646267,-302.535509,0.00027671,2]
[313497143,1707402646276,-772.34776873,0.00027965,2]
[313497145,1707402646286,-4369.78159121,0.00028,2]
[313497148,1707402646297,-1716.51144437,0.00028,2]
[313497150,1707402646306,-63524.20200787,0.00028,2]
[313497151,1707402646315,-202.50085586,0.00028,2]
[313497153,1707402646325,-400.0,0.00028,5]
[313497155,1707402646335,-620.01094552,0.00028065,2]
[313497157,1707402646344,-8709.07728965,0.00028085,4]
[313497159,1707402646353,-151.0,0.00028105,2]
[313497161,1707402646363,-5059.99577532,0.000282,3]
[313497163,1707402646372,-1000.0,0.000285,2]
[313497166,1707402646383,-391.0,0.0002875,15]
[313497167,1707402646392,-155.0,0.00028767,2]
[313497169,1707402646402,-151.0,0.0002881,2]
[313497171,1707402646412,-710.73253856,0.00028894,2]
[313497173,1707402646422,-406.94636345,0.00028999,2]
[313497175,1707402646433,-500.0,0.00028999,2]
[313497178,1707402646443,-500.0,0.00028999,2]
[313497179,1707402646456,-198.0198743,0.00028999,2]
[313497181,1707402646466,-500.0,0.00028999,2]
[313497183,1707402646477,-500.0,0.00028999,2]
[313497185,1707402646487,-500.0,0.00028999,2]
[313497187,1707402646500,-500.0,0.00028999,2]
[313497188,1707402646510,-500.0,0.00028999,2]
[313497189,1707402646521,-396.73540339,0.00028999,2]
[313497190,1707402646531,-405.28684532,0.00028999,2]
[313497191,1707402646541,-500.0,0.00028999,2]
[313497193,1707402646551,-500.0,0.00028999,2]
[313497194,1707402646561,-500.0,0.00028999,2]
[313497195,1707402646571,-644.33777443,0.00028999,2]
[313497196,1707402646580,-489.12446016,0.00028999,2]
[313497197,1707402646590,-500.0,0.00028999,2]
[313497198,1707402646600,-500.0,0.00028999,2]
[313497199,1707402646609,-500.0,0.00028999,2]
[313497200,1707402646619,-500.0,0.00028999,2]
[313497201,1707402646628,-500.0,0.00028999,2]
[313497202,1707402646638,-500.0,0.00028999,2]
[313497203,1707402646647,-450.0,0.00028999,2]
[313497204,1707402646656,-500.0,0.00028999,2]
[313497205,1707402646665,-500.0,0.00028999,2]
[313497206,1707402646675,-250.0,0.00028999,2]
[313497207,1707402646685,-601.61306,0.00028999,2]
[313497208,1707402646694,-500.0,0.00028999,2]
[313497209,1707402646703,-500.0,0.00028999,2]
[313497210,1707402646713,-500.0,0.00028999,2]
[313497211,1707402646722,-500.0,0.00028999,2]
[313497212,1707402646732,-491.29459395,0.00028999,2]
[313497213,1707402646742,-500.0,0.00028999,2]
[313497214,1707402646755,-500.0,0.00028999,2]
[313497215,1707402646765,-500.0,0.00028999,2]
[313497216,1707402646774,-500.0,0.00028999,2]
[313497217,1707402646783,-500.0,0.00028999,2]
[313497218,1707402646792,-497.9057371,0.00028999,2]
[313497219,1707402646805,-500.0,0.00028999,2]
[313497221,1707402646814,-300.0,0.00028999,2]
[313497222,1707402646823,-500.0,0.00028999,2]
[313497224,1707402646832,-500.0,0.00028999,2]
[313497225,1707402646841,-500.0,0.00028999,2]
[313497227,1707402646850,-500.0,0.00028999,2]
[313497228,1707402646859,-500.0,0.00028999,2]
[313497229,1707402646869,-500.0,0.00028999,2]
[313497231,1707402646878,-500.0,0.00028999,2]
[313497233,1707402646887,-500.0,0.00028999,2]
[313497234,1707402646896,-500.0,0.00028999,2]
[313497235,1707402646905,-500.0,0.00028999,2]
[313497236,1707402646914,-500.0,0.00028999,2]
[313497237,1707402646923,-500.0,0.00028999,2]
[313497238,1707402646932,-170.12147367,0.00028999,2]
[313497239,1707402646941,-500.0,0.00028999,2]
[313497240,1707402646951,-506.91518786,0.00028999,2]
[313497241,1707402646959,-500.0,0.00028999,2]
[313497242,1707402646969,-500.0,0.00028999,2]
[313497243,1707402646977,-500.0,0.00028999,2]
[313497244,1707402646986,-500.0,0.00028999,2]
[313497245,1707402646995,-500.0,0.00028999,2]
[313497246,1707402647006,-500.0,0.00028999,2]
[313497247,1707402647014,-500.0,0.00028999,2]
[313497248,1707402647023,-500.0,0.00028999,2]
[313497249,1707402647033,-500.0,0.00028999,2]
[313497250,1707402647042,-500.0,0.00028999,2]
[313497251,1707402647051,-500.0,0.00028999,2]
[313497252,1707402647060,-500.0,0.00028999,2]
[313497253,1707402647069,-500.0,0.00028999,2]
[313497254,1707402647079,-500.0,0.00028999,2]
[313497255,1707402647088,-500.0,0.00028999,2]
[313497256,1707402647096,-500.0,0.00028999,2]
[313497257,1707402647105,-500.0,0.00028999,2]
[313497258,1707402647114,-500.0,0.00028999,2]
[313497259,1707402647123,-500.0,0.00028999,2]
[313497260,1707402647132,-500.0,0.00028999,2]
[313497261,1707402647141,-500.0,0.00028999,2]
[313497262,1707402647150,-500.0,0.00028999,2]
[313497263,1707402647160,-250.0,0.00028999,2]
[313497264,1707402647169,-500.0,0.00028999,2]
[313497265,1707402647178,-500.0,0.00028999,2]
[313497266,1707402647187,-500.0,0.00028999,2]
[313497267,1707402647199,-500.0,0.00028999,2]
[313497268,1707402647208,-482.94013213,0.00028999,2]
[313497269,1707402647218,-56321.64049573,0.00029,2]
[313497270,1707402647227,-351.92928518,0.00029,10]
[313497271,1707402647237,-1000.0,0.00029,29]
[313497272,1707402647246,-178.23601173,0.00029,2]
[313497273,1707402647258,-11650.97871445,0.00029,2]
[313497274,1707402647267,-459.60686937,0.00029,3]
[313497275,1707402647277,-2000.0,0.00029,2]
[313497276,1707402647286,-2000.0,0.00029,2]
[313497277,1707402647298,-2500.0,0.00029,2]
[313497278,1707402647307,-165.054232,0.00029,2]
[313497279,1707402647317,-500.0,0.00029,2]
[313497280,1707402647326,-2000.0,0.0002901,2]
[313497281,1707402647336,-2000.0,0.0002901,2]
[313497282,1707402647345,-2000.0,0.0002902,2]
[313497283,1707402647354,-2000.0,0.0002902,2]
[313497284,1707402647363,-2000.0,0.0002903,2]
[313497285,1707402647372,-2000.0,0.0002903,2]
[313497286,1707402647382,-2000.0,0.0002904,2]
[313497287,1707402647390,-2000.0,0.0002904,2]
[313497288,1707402647400,-2000.0,0.0002905,2]
[313497289,1707402647410,-2000.0,0.0002905,2]
[313497290,1707402647419,-2000.0,0.0002906,2]
[313497291,1707402647429,-2000.0,0.0002906,2]
[313497292,1707402647438,-2000.0,0.0002907,2]
[313497293,1707402647451,-2000.0,0.0002907,2]
[313497294,1707402647460,-2000.0,0.0002908,2]
[313497295,1707402647470,-2000.0,0.0002908,2]
[313497296,1707402647479,-2000.0,0.0002909,2]
[313497297,1707402647488,-2000.0,0.0002909,2]
[313497298,1707402647499,-2000.0,0.000291,2]
[313497299,1707402647508,-2000.0,0.000291,2]
[313497300,1707402647518,-2000.0,0.0002911,2]
[313497301,1707402647527,-2000.0,0.0002911,2]
[313497302,1707402647538,-2655.285295,0.0002912,2]
[313497303,1707402647547,-2000.0,0.0002912,2]
[313497304,1707402647556,-2000.0,0.0002913,2]
[313497305,1707402647565,-2000.0,0.0002914,2]
[313497306,1707402647574,-2000.0,0.0002915,2]
[313497307,1707402647583,-2000.0,0.0002916,2]
[313497308,1707402647593,-3575.763388,0.0002917,2]
[313497309,1707402647602,-307.3855345,0.00029315,2]
[313497310,1707402647611,-306.0,0.00029315,2]
[313497311,1707402647620,-420.4280906,0.00029315,2]
[313497312,1707402647629,-153.4634771,0.00029315,2]
[313497313,1707402647639,-199.9537868,0.00029315,2]
[313497314,1707402647648,-207.7973928,0.00029315,2]
[313497315,1707402647657,-153.0,0.00029315,2]
[313497316,1707402647666,-199.9537868,0.00029315,2]
[313497317,1707402647676,-153.0,0.00029315,2]
[313497318,1707402647686,-199.9537868,0.00029315,2]
[313497319,1707402647696,-153.0,0.00029315,2]
[313497320,1707402647705,-199.9537868,0.00029315,2]
[313497321,1707402647715,-199.9537868,0.00029315,2]
[313497322,1707402647724,-153.0,0.00029315,2]
[313497323,1707402647734,-364.5569269,0.00029315,2]
[313497324,1707402647743,-620.00054728,0.00029469,2]
[313497325,1707402647755,-1185.04629617,0.000295,30]
[313497326,1707402647764,-151.0,0.00029514,2]
[313497327,1707402647773,-327.23201921,0.00029559,2]
[313497328,1707402647783,-37649.66285462,0.00029563,5]
[313497329,1707402647792,-24951.03685817,0.00029565,5]
[313497330,1707402647801,-153.0,0.00029589,2]
[313497331,1707402647810,-772.34776873,0.00029746,2]
[313497332,1707402647819,-578.0,0.000299,2]
[313497333,1707402647828,-335.61069179,0.00029997,2]
[313497334,1707402647838,-134.76343224,0.0003,2]
[313497335,1707402647847,-2986.77747873,0.0003,4]
[313497336,1707402647857,-349.8322969,0.0003,4]
[313497337,1707402647866,-155.07443573,0.0003,4]
[313497338,1707402647875,-504.07876722,0.0003,14]
[313497339,1707402647885,-503.5907265,0.0003,10]
[313497340,1707402647894,-1238.74025828,0.0003,14]
[313497341,1707402647903,-338.54130729,0.0003,2]
[313497342,1707402647913,-985.799551,0.0003,4]
[313497343,1707402647922,-16342.64072087,0.0003,30]
[313497344,1707402647931,-831.667,0.0003,2]
[313497345,1707402647941,-259.0,0.0003,2]
[313497346,1707402647951,-155.0,0.00030137,2]
[313497347,1707402647960,-151.0,0.00030219,2]
[313497348,1707402647969,-155.31785117,0.00030888,7]
[313497349,1707402647978,-998.832,0.000309,2]
[313497350,1707402647987,-155.31785117,0.00030913,7]
[313497351,1707402647996,-151.0,0.00030924,2]
[313497352,1707402648006,-1000.0,0.00031,31]
[313497353,1707402648015,-3473.54372696,0.00031,4]
[313497354,1707402648024,-1500.0,0.00031,2]
[313497355,1707402648104,-1500.0,0.00031,2]
[313497356,1707402648113,-1500.0,0.00031,2]
[313497357,1707402648123,-1500.0,0.00031,2]
[313497358,1707402648132,-1500.0,0.00031,2]
[313497359,1707402648142,-1500.0,0.00031,2]
[313497360,1707402648151,-1500.0,0.00031,2]
[313497361,1707402648160,-1500.0,0.00031,2]
[313497362,1707402648169,-1500.0,0.00031,2]
[313497363,1707402648178,-1500.0,0.00031,2]
[313497364,1707402648187,-1139.8,0.00031,2]
[313497365,1707402648196,-1785.13742471,0.00031,7]
[313497366,1707402648206,-155.67125906,0.00031129,4]
[313497367,1707402648216,-155.93929282,0.00031132,4]
[313497368,1707402648225,-156.07961329,0.00031132,4]
[313497369,1707402648235,-226.43569304,0.00031132,4]
[313497370,1707402648244,-247.54112977,0.00031132,4]
[313497371,1707402648256,-155.95998933,0.00031132,4]
[313497372,1707402648265,-156.0541614,0.00031132,4]
[313497373,1707402648275,-155.76626702,0.00031132,4]
[313497374,1707402648285,-311.14720264,0.00031132,4]
[313497375,1707402648294,-155.86707767,0.00031132,4]
[313497376,1707402648304,-200.71314787,0.00031133,4]
[313497377,1707402648314,-155.0,0.00031507,2]
[313497378,1707402648324,-772.34776873,0.00031526,2]
[313497379,1707402648333,-200.0,0.00031625,15]
[313497380,1707402648343,-348.0,0.00031625,15]
[313497381,1707402648352,-151.0,0.00031628,2]
[313497382,1707402648362,-155.31785117,0.00031835,7]
[313497383,1707402648372,-2661.37538399,0.0003184,30]
[313497384,1707402648380,-300.0,0.000319,16]
[313497385,1707402648389,-21636.36616568,0.000319,3]
[313497386,1707402648399,-150.5,0.0003197,30]
[313497387,1707402648409,-240.34,0.0003197,30]
[313497388,1707402648418,-194.84,0.0003198,30]
[313497389,1707402648428,-150.5,0.0003198,30]
[313497390,1707402648437,-155.21,0.0003198,30]
[313497391,1707402648450,-150.5,0.0003198,30]
[313497392,1707402648460,-1091.56734664,0.0003199,21]
[313497393,1707402648470,-150.5,0.0003199,30]
[313497394,1707402648479,-150.5,0.0003199,30]
[313497395,1707402648488,-150.5,0.0003199,30]
[313497396,1707402648500,-150.5,0.0003199,30]
[313497397,1707402648509,-188.0,0.0003199,30]
[313497398,1707402648519,-39064.82830208,0.00031999,7]
[313497399,1707402648529,-155.59938255,0.00031999,4]
[313497400,1707402648539,-1000.40633568,0.00031999,4]
[313497401,1707402648548,-314.48671911,0.00031999,6]
[313497402,1707402648558,-246378.83679437,0.00032,15]
[313497403,1707402648567,-141944.91297063,0.00032,15]
[313497404,1707402648583,-11690.71176535,0.00032,15]
[313497405,1707402648593,-53291.00062788,0.00032,15]
[313497406,1707402648650,-1485.05,0.00025884,3]
[313497407,1707402648660,-3276.04050535,0.00032,15]
[313497408,1707402648673,-1268.1520969,0.00032,15]
[313497409,1707402648700,-505.8,0.00026271,2]
[313497410,1707402670677,-1000.0,0.00033,33]
[313497411,1707402670704,-176.15941315,0.00034898,120]
[313497412,1707402670728,-508898.83043,0.00034899,30]
[313497413,1707402670754,-1000.0,0.00035,35]
[313497414,1707402670781,-20000.0,0.00035,30]
[313497415,1707402670807,-1765.5984321,0.000359,30]
[313497416,1707402670831,-11337.21325347,0.00036,90]
[313497417,1707402670858,-356.87840516,0.00036,30]
[313497418,1707402670883,-1000.0,0.00037,37]
[313497419,1707402670996,-1000.0,0.00038,30]
[313497420,1707402671024,-1602.02231987,0.00038,120]
[313497421,1707402671049,-500.0,0.00038,120]
[313497422,1707402671074,-5612.0,0.00038,30]
[313497423,1707402671098,-4200.0,0.00038383,60]
[313497424,1707402671124,-7829.0,0.00038777,120]
[313497425,1707402671150,-298.93,0.00038865,30]
[313497426,1707402671175,-150.5,0.00038875,30]
[313497427,1707402671199,-217470.78137266,0.0003889,33]
[313497428,1707402671223,-1000.0,0.00039,39]
[313497429,1707402671247,-5121.58574104,0.00039,120]
[313497430,1707402671273,-1240.41,0.000393,60]
[313497431,1707402671298,-3171.54612588,0.00039768,120]
[313497432,1707402671325,-192283.21747373,0.00039876,120]
[313497433,1707402671349,-151.58210632,0.0003989,120]
[313497434,1707402671375,-290000.0,0.000399,60]
[313497435,1707402671400,-125584.4468395,0.00039919,30]
[313497436,1707402671425,-549.99203862,0.0004,90]
[313497437,1707402671450,-4253.62419482,0.0004,120]
[313497438,1707402671477,-200.0,0.0004,30]
[313497439,1707402671501,-13769.3316472,0.0004,30]
[313497440,1707402671524,-430.0,0.0004,30]
[313497441,1707402671551,-3022.0,0.0004,30]
[313497442,1707402671576,-8217.3927288,0.0004,120]
[313497443,1707402671602,-3829.0,0.0004,60]
[313497444,1707402671626,-1669.78231699,0.0004,120]
[313497445,1707402671651,-261.65347642,0.0004,30]
[313497446,1707402671675,-22248.0,0.0004,30]
[313497447,1707402671700,-2370.0,0.0004,30]
[313497448,1707402671730,-2014.0,0.0004,30]
[313497449,1707402671755,-10050.84139314,0.0004,30]
[313497450,1707402671780,-33500.0,0.0004,120]
[313497451,1707402671806,-5156.206,0.0004,30]
[313497452,1707402671830,-500.0,0.0004,30]
[313497453,1707402671858,-1000.0,0.0004,40]
[313497454,1707402671884,-1208.67685904,0.00040253,30]
[313497455,1707402671910,-781.10682345,0.00040399,120]
[313497456,1707402671935,-599.0,0.000405,120]
[313497457,1707402671960,-47099.77217531,0.000407,120]
[313497458,1707402671985,-3625.0114,0.00040759,30]
[313497459,1707402672011,-333.0,0.00041,30]
[313497460,1707402672038,-1000.0,0.00041,41]
[313497461,1707402672064,-95807.41418386,0.00041,30]
[313497462,1707402672090,-171690.95349397,0.00041,60]
[313497463,1707402672115,-1000.0,0.00041,120]
[313497464,1707402672142,-158.68284583,0.00041038,30]
[313497465,1707402672167,-500.0,0.00041095,30]
[313497466,1707402672191,-500.0,0.00041095,30]
[313497467,1707402672216,-500.0,0.00041095,30]
[313497468,1707402672241,-500.0,0.00041095,30]
[313497469,1707402672268,-500.0,0.00041095,30]
[313497470,1707402672293,-500.0,0.00041095,30]
[313497471,1707402672319,-500.0,0.00041095,30]
[313497472,1707402672344,-502.28468971,0.00041095,30]
[313497473,1707402672369,-202.87476098,0.00041095,30]
[313497474,1707402672394,-500.0,0.00041095,30]
[313497475,1707402672419,-500.0,0.00041095,30]
[313497476,1707402672443,-500.0,0.00041095,30]
[313497477,1707402672468,-500.0,0.00041095,30]
[313497478,1707402672492,-500.0,0.00041095,30]
[313497479,1707402672516,-500.0,0.00041095,30]
[313497480,1707402672540,-500.0,0.00041095,30]
[313497481,1707402672566,-500.0,0.00041095,30]
[313497482,1707402672590,-500.0,0.00041095,30]
[313497483,1707402672614,-500.0,0.00041095,30]
[313497484,1707402672712,-500.0,0.00041095,30]
[313497485,1707402672736,-500.0,0.00041095,30]
[313497486,1707402672761,-500.0,0.00041095,30]
[313497487,1707402672786,-500.0,0.00041095,30]
[313497488,1707402672810,-500.0,0.00041095,30]
[313497489,1707402672834,-340.59993585,0.00041095,30]
[313497490,1707402672860,-500.0,0.00041095,30]
[313497491,1707402672886,-500.0,0.00041095,30]
[313497492,1707402672911,-500.0,0.00041095,30]
[313497493,1707402672936,-500.0,0.00041095,30]
[313497494,1707402672962,-500.0,0.00041095,30]
[313497495,1707402672988,-577.80150664,0.00041095,30]
[313497496,1707402673013,-207.22224266,0.00041095,30]
[313497497,1707402673040,-649.8,0.00041095,30]
[313497498,1707402673071,-237.2501031,0.000414,45]
[313497499,1707402673095,-36838.0,0.0004142,30]
[313497500,1707402673121,-52516.52105015,0.00041518,60]
[313497501,1707402673146,-3404.04540218,0.00041598,30]
[313497502,1707402673170,-20000.0,0.00041666,120]
[313497503,1707402673195,-105938.66004021,0.0004187,30]
[313497504,1707402673219,-78556.88785101,0.000419,60]
[313497505,1707402673245,-1297.5446306,0.00041949,40]
[313497506,1707402673271,-39618.47156661,0.00041999,120]
[313497507,1707402673296,-652.15157826,0.00041999,120]
[313497508,1707402673321,-250.0,0.00041999,35]
[313497509,1707402673346,-250.0,0.00041999,42]
[313497510,1707402673371,-200000.0,0.00042,30]
[313497511,1707402673395,-200000.0,0.00042,30]
[313497512,1707402673420,-18262.28227956,0.00042,120]
[313497513,1707402673446,-440.26717835,0.00042,120]
[313497514,1707402673473,-80078.94071845,0.00042,30]
[313497515,1707402673499,-62537.21023801,0.00042,30]
[313497516,1707402673525,-1000.0,0.00042,120]
[313497517,1707402673551,-1000.0,0.00042,120]
[313497518,1707402673577,-1000.0,0.00042,120]
[313497519,1707402673601,-1017.0,0.00042,120]
[313497520,1707402673626,-1000.0,0.00042,42]
[313497521,1707402673650,-180297.48922793,0.000422,30]
[313497522,1707402673675,-281.0,0.00042276,30]
[313497523,1707402673700,-49891.759997,0.000423,30]
[313497524,1707402673730,-725.4633221,0.00042409,120]
[313497525,1707402673755,-158.68284584,0.00042412,30]
[313497526,1707402673781,-7673.64534447,0.0004245,30]
[313497527,1707402678087,-649.8,0.00041095,30]
[313497528,1707402678116,-649.8,0.00041095,30]
[313497529,1707402678224,-649.8,0.00041095,30]
[313497530,1707402678252,-649.8,0.00041095,30]
[313497531,1707402678281,-649.8,0.00041095,30]
[313497532,1707402678309,-649.8,0.00041095,30]
[313497533,1707402678339,-649.8,0.00041095,30]
[313497534,1707402678366,-649.8,0.00041095,30]
[313497535,1707402678394,-649.8,0.00041095,30]
[313497536,1707402678421,-649.8,0.00041095,30]
[313497537,1707402678448,-649.8,0.00041095,30]
[313497538,1707402678479,-649.8,0.00041095,30]
[313497539,1707402678507,-649.8,0.00041095,30]
[313497540,1707402678536,-649.8,0.00041095,30]
[313497541,1707402678564,-649.8,0.00041095,30]
[313497542,1707402678591,-649.8,0.00041095,30]
[313497543,1707402678618,-649.8,0.00041095,30]
[313497544,1707402678644,-649.8,0.00041095,30]
[313497545,1707402678670,-649.8,0.00041095,30]
[313497546,1707402678698,-649.8,0.00041095,30]
[313497547,1707402678724,-649.8,0.00041095,30]
[313497548,1707402678762,-252963.65465553,0.0004245,30]
[313497549,1707402678790,-46301.74728961,0.00042458,30]
[313497550,1707402678816,-1000.0,0.00042462,120]
[313497551,1707402678842,-2000.0,0.00042592,30]
[313497552,1707402678868,-25000.0,0.00042666,120]
[313497553,1707402678895,-217.58378732,0.00042889,30]
[313497554,1707402678922,-1000.0,0.00043,30]
[313497555,1707402678948,-155.5256752,0.00043,120]
[313497556,1707402678974,-180.0,0.00043,50]
[313497557,1707402679000,-1000.0,0.00043,120]
[313497558,1707402679035,649.8,0.00041095,30]
[313497559,1707402679066,2000.0,0.000422,34]
[313497560,1707402679098,649.95112653,0.00041095,30]
[313497610,1707402994632,-500.0,0.00042084,120]
[313497611,1707402994660,-5999500.0,0.00042084,60]
[313497612,1707403009919,-6000000.0,0.00042084,60]
[313497613,1707403012982,-6000000.0,0.00042084,60]
[313497715,1707403832160,-324.06509508,0.00021875,2]
[313497717,1707403832170,-2606.4717958,0.00021875,2]
[313497719,1707403832179,-185.0083529,0.00021876,2]
[313497721,1707403832188,-745.8991711,0.00021876,2]